fUSD/lending_fUSD_20240212
["ID","MTS","AMOUNT","RATE_DAILY","PERIOD"]
[313766186,1707696153936,205.0,0.00021905,2]
[313766187,1707696216552,204.99988,0.00021905,2]
[313766188,1707696357056,181.24782312,0.00020698,30]
[313766189,1707696367435,255.46,0.00022381,2]
[313766215,1707696631762,-833.57140238,0.000228,2]
[313766216,1707696631773,-162.92859762,0.00022884,2]
[313766222,1707696637898,-184.77784274,0.00022784,2]
[313766223,1707696637908,-548.10140238,0.00022884,2]
[313766224,1707696637917,-5000.0,0.000229,2]
[313766225,1707696637927,-830.02250726,0.000229,2]
[313766226,1707696637937,-780.18530112,0.0002299,2]
[313766227,1707696637946,-229.40076689,0.00022998,2]
[313766228,1707696637956,-7816.05560032,0.00022998,2]
[313766229,1707696637965,-231.15577453,0.00022998,3]
[313766230,1707696637976,-4265.84733406,0.00022998,2]
[313766231,1707696637985,-11311.18049667,0.00022998,2]
[313766232,1707696637995,-235.32159405,0.00022999,2]
[313766233,1707696638005,-290.47290728,0.00022999,2]
[313766234,1707696638014,-349.18255878,0.00022999,2]
[313766235,1707696638024,-500.0,0.00022999,2]
[313766236,1707696638033,-150.0,0.00022999,2]
[313766237,1707696638042,-150.0,0.00022999,2]
[313766238,1707696638052,-150.0,0.00022999,2]
[313766239,1707696638062,-150.0,0.00022999,2]
[313766240,1707696638071,-150.0,0.00022999,2]
[313766241,1707696638080,-150.0,0.00022999,2]
[313766242,1707696638089,-150.0,0.00022999,2]
[313766248,1707696638361,-150.0,0.00022999,2]
[313766249,1707696638419,-150.0,0.00022999,2]
[313766250,1707696638428,-150.0,0.00022999,2]
[313766251,1707696638437,-150.0,0.00022999,2]
[313766252,1707696638446,-150.0,0.00022999,2]
[313766253,1707696638455,-398049.13290578,0.00023,2]
[313766254,1707696638463,-1000.0,0.00023,2]
[313766255,1707696638472,-2483735.41589298,0.00023,2]
[313766256,1707696639115,-731.50666818,0.00023,2]
[313766257,1707696639128,-741.27723955,0.00023,2]
[313766258,1707696639140,-420.8888349,0.00023,2]
[313766259,1707696639152,-313.89851893,0.00023,2]
[313766260,1707696639163,-145044.99999997,0.00023,2]
[313766261,1707696639174,-1036.60773669,0.00023,2]
[313766262,1707696639189,-311.9125,0.00023,2]
[313766263,1707696639223,-290197.62213048,0.00023,2]
[313766264,1707696639269,-1890.03714493,0.00023,2]
[313766265,1707696639285,-999.11443354,0.00023,2]
[313766268,1707696640470,-3050.94896459,0.00023,2]
[313766269,1707696640483,-539.51500002,0.00023,2]
[313766270,1707696641301,-336.07034403,0.00023,2]
[313766335,1707696643840,-16675.18038398,0.00023,2]
[313766339,1707696645925,-2336.44244264,0.00023,2]
[313766341,1707696670121,422.01583191,0.00022078,2]
[313766342,1707696686094,264.39043963,0.00022078,2]
[313766344,1707696791687,256.62,0.00021403,2]
[313766345,1707696963472,22133.62592056,0.00022401,2]
[313766346,1707697000708,354.22,0.00022,2]
[313766347,1707697251027,200.0,0.0002189,30]
[313766348,1707697251067,304.17567576,0.0002189,30]
[313766349,1707697255936,200.0,0.0002189,30]
[313766350,1707697264022,205.0,0.00022368,2]
[313766351,1707697365943,284.46,0.00022308,2]
[313766352,1707697374659,500.0,0.00022353,2]
[313766353,1707697412851,243.78,0.0002056,2]
[313766354,1707697440702,340.72,0.00022326,2]
[313766407,1707697832079,-160.0,0.00022421,2]
[313766409,1707697832089,-840.0,0.00022467,2]
[313766412,1707697832100,-164.2,0.00022635,2]
[313766414,1707697832111,-153.67,0.00022685,2]
[313766416,1707697832121,-153.31000214,0.000228,2]
[313766418,1707697832132,-243.78,0.00022824,2]
[313766420,1707697832143,-153.31000214,0.00022825,2]
[313766422,1707697832153,-153.31000214,0.0002285,2]
[313766424,1707697832171,-153.31000214,0.00022875,2]
[313766426,1707697832181,-724.22,0.00022898,2]
[313766427,1707697832192,-715.25,0.00022898,2]
[313766428,1707697832202,-464.78262643,0.00022899,2]
[313766429,1707697832216,-260.02737357,0.00022899,2]
[313766430,1707697832226,-150.0,0.00022899,2]
[313766431,1707697832238,-300.0,0.00022899,2]
[313766432,1707697832248,-578.0074,0.000229,2]
[313766433,1707697832259,-244.65105906,0.000229,2]
[313766434,1707697832279,-1255.34894094,0.000229,2]
[313766435,1707697832290,-153.31000214,0.000229,2]
[313766436,1707697832301,-5000.0,0.000229,2]
[313766437,1707697832311,-858.01414277,0.000229,2]
[313766438,1707697832322,-532.22727244,0.000229,2]
[313766439,1707697832333,-293.92420876,0.0002299,2]
[313766440,1707697832343,-1119.95803316,0.00022996,2]
[313766441,1707697832366,-936.24005131,0.00022996,2]
[313766442,1707697832376,-210.07826669,0.00022996,2]
[313766443,1707697832433,-74.1766594,0.00022996,2]
[313766444,1707697832442,-251.29667188,0.00022996,2]
[313766445,1707697832453,-373.51188536,0.00022996,2]
[313766446,1707697832465,-1777.03728473,0.00022996,2]
[313766447,1707697832486,-2054.57623703,0.00022996,2]
[313766448,1707697832495,-503.82903438,0.00022997,2]
[313766449,1707697832504,-3160.86966604,0.00022997,2]
[313766450,1707697832514,-159.42156778,0.00022998,2]
[313766451,1707697832524,-75775.87018324,0.00022998,2]
[313766452,1707697832533,-155.0,0.00022998,2]
[313766453,1707697832542,-157.021,0.00022998,3]
[313766454,1707697832551,-5466.92262612,0.00022999,2]
[313766455,1707697832560,-1148.725,0.00022999,2]
[313766456,1707697832569,-1070.3857305,0.00022999,2]
[313766457,1707697832578,-500.0,0.00022999,2]
[313766458,1707697832588,-349.18255878,0.00022999,2]
[313766459,1707697832597,-290.47290728,0.00022999,2]
[313766460,1707697832606,-235.32159405,0.00022999,2]
[313766461,1707697832615,-419.98747208,0.00022999,2]
[313766462,1707697832624,-150.0,0.00022999,2]
[313766463,1707697832633,-150.0,0.00022999,2]
[313766464,1707697832642,-150.0,0.00022999,2]
[313766465,1707697832652,-150.0,0.00022999,2]
[313766466,1707697832661,-150.0,0.00022999,2]
[313766467,1707697832673,-150.0,0.00022999,2]
[313766468,1707697832683,-232275.01578237,0.00023,2]
[313766469,1707697832696,-20836.73260829,0.00023,2]
[313766470,1707697832708,-881.51369091,0.00023,2]
[313766471,1707697832719,-734.66922033,0.00023,2]
[313766472,1707697832732,-544.02,0.00023,2]
[313766479,1707697835008,-115717.4289566,0.00023,2]
[313766480,1707697835020,-3645.65640227,0.00023,2]
[313766495,1707697840204,-276.08104344,0.00023,2]
[313766496,1707697840218,-23138.01520157,0.00023,2]
[313766497,1707697840228,-2862821.5106573,0.00023,2]
[313766510,1707697840604,-12754.58151614,0.00023,2]
[313766513,1707697840616,-876.73274452,0.00023,2]
[313766519,1707697840667,-117798.50910129,0.00023,2]
[313766522,1707697840681,-800.68838,0.00023,2]
[313766524,1707697840694,-297.60793773,0.00023,2]
[313766538,1707697840952,-2425.0,0.00023,2]
[313766539,1707697840964,-503.48970438,0.00023,2]
[313766540,1707697841579,-1940.2521247,0.00023,2]
[313766541,1707697841591,-2115.10804525,0.00023,2]
[313766542,1707697841605,-7702.63860181,0.00023,2]
[313766543,1707697841618,-340.5075332,0.00023,2]
[313766544,1707697841661,-24419.241,0.00023,2]
[313766545,1707697841686,-49854.48552256,0.00023,2]
[313766546,1707697841740,-237918.95298974,0.00023,2]
[313766547,1707697841752,-4873.62779999,0.00023,2]
[313766556,1707697843120,-712.6633968,0.00023,2]
[313766557,1707697843132,-2059.4948,0.00023,2]
[313766558,1707697843145,-17890.45950987,0.00023,2]
[313766559,1707697843240,-3270.42509047,0.00023,2]
[313766560,1707697843253,-8482.55998297,0.00023,2]
[313766582,1707697846088,-290.6057507,0.00023,2]
[313766588,1707697846421,-12590.09490716,0.00023,2]
[313766590,1707697846439,-383.19215595,0.00023,2]
[313766594,1707697846460,-679.926,0.00023,2]
[313766607,1707697846580,-1262.5,0.00023,2]
[313766609,1707697846591,-1218.175,0.00023,2]
[313766636,1707697853821,526.28522185,0.00022326,2]
[313766637,1707697854281,422.01583191,0.00022079,2]
[313766638,1707697858217,876.83039745,0.00020317,2]
[313766639,1707697858955,2513.90859555,0.0002,2]
[313766640,1707697859074,710.87707791,0.00022326,2]
[313766641,1707697859171,656.85052645,0.00022326,4]
[313766642,1707697861604,2226.68203102,0.00022326,2]
[313766643,1707697862553,1049.38214179,0.00021849,7]
[313766644,1707697862738,7720.69510262,0.00022214,2]
[313766645,1707697867274,1283.65969243,0.00022079,5]
[313766646,1707697874409,246.67,0.00021363,2]
[313766647,1707697912225,277.58577255,0.00022079,2]
[313766648,1707697913174,688.73882902,0.00022079,2]
[313766649,1707697924419,380.09202361,0.00021363,2]
[313766650,1707698014086,399.069,0.00021879,2]
[313766651,1707698014271,399.069,0.00021879,2]
[313766652,1707698015080,399.07,0.00021879,2]
[313766653,1707698015184,399.069,0.00021879,2]
[313766654,1707698015289,399.069,0.00021879,2]
[313766655,1707698015510,750.0,0.00021823,2]
[313766656,1707698105637,250.0,0.00022,2]
[313766657,1707698106939,250.0,0.00022274,2]
[313766658,1707698109352,298.01270489,0.00022,2]
[313766659,1707698122047,165.54,0.00022383,2]
[313766660,1707698162789,166.86,0.00021737,2]
[313766661,1707698209168,156.0,0.00021898,2]
[313766662,1707698209365,156.0,0.00022278,2]
[313766663,1707698250960,1055.80490423,0.00022401,2]
[313766664,1707698252035,203.73243669,0.00022401,2]
[313766665,1707698252414,2150.13332931,0.00022401,2]
[313766666,1707698255560,229.52697317,0.00022401,2]
[313766667,1707698257495,640.41658753,0.00022401,2]
[313766668,1707698259893,250.08465082,0.00022401,2]
[313766669,1707698260328,1050.85386154,0.00022401,2]
[313766670,1707698262649,328.0,0.00021748,2]
[313766671,1707698264475,1180.65689555,0.00022401,2]
[313766672,1707698272047,158.85661513,0.00022401,2]
[313766673,1707698275424,177.2,0.00022,2]
[313766674,1707698282440,2916.56350754,0.00022401,2]
[313766675,1707698289272,500.0,0.00022,2]
[313766676,1707698289487,266.84674691,0.00022401,2]
[313766677,1707698348374,679.2,0.0002175,2]
[313766678,1707698350124,339.40462943,0.00022401,2]
[313766679,1707698390442,340.72,0.00021769,2]
[313766680,1707698410226,262.6,0.00019851,2]
[313766681,1707698410305,262.6,0.00022115,2]
[313766683,1707698673933,205.0,0.00022131,2]
[313766684,1707698704356,156.0,0.00021941,2]
[313766685,1707698726947,737.6,0.00021792,2]
[313766686,1707698850744,236.34,0.00019911,2]
[313766687,1707698850942,236.34,0.00022175,2]
[313766688,1707698853943,566.0,0.00021844,2]
[313766689,1707698917433,177.2,0.00022,2]
[313766690,1707698933559,170.36,0.00021916,2]
[313766704,1707699032136,-230.57244702,0.00022402,2]
[313766705,1707699032146,-154.12357412,0.00022421,2]
[313766706,1707699032156,-154.12357403,0.00022458,2]
[313766707,1707699032165,-2048.69018546,0.00022494,2]
[313766708,1707699032194,-746.17611344,0.00022494,2]
[313766709,1707699032203,-154.12357403,0.00022495,2]
[313766710,1707699032212,-165.24842061,0.00022521,2]
[313766711,1707699032224,-134.75157939,0.00022521,2]
[313766712,1707699032233,-150.0,0.00022521,2]
[313766713,1707699032242,-150.0,0.00022521,2]
[313766714,1707699032252,-13802.77274337,0.00022522,2]
[313766715,1707699032262,-938.99793854,0.00022525,2]
[313766716,1707699032274,-1639.97491973,0.00022525,2]
[313766717,1707699032285,-1394.19054399,0.00022525,2]
[313766718,1707699032297,-461.43417062,0.00022525,2]
[313766719,1707699032309,-193.18683681,0.00022525,2]
[313766720,1707699032318,-154.12357403,0.00022532,2]
[313766721,1707699032327,-177.2,0.00022548,2]
[313766722,1707699032337,-154.12357403,0.00022568,2]
[313766723,1707699032346,-154.12357403,0.00022605,2]
[313766724,1707699032355,-154.12357403,0.00022642,2]
[313766725,1707699032365,-249.0831616,0.00022669,2]
[313766726,1707699032374,-387.5129487,0.00022669,2]
[313766727,1707699032384,-4782.868,0.0002267,2]
[313766728,1707699032393,-154.12357403,0.00022679,2]
[313766729,1707699032402,-1000.0,0.000227,2]
[313766730,1707699032411,-154.12357403,0.00022716,2]
[313766731,1707699032420,-154.12357403,0.00022753,2]
[313766732,1707699032487,-1528.71414916,0.00022753,2]
[313766733,1707699032508,-72.08585084,0.00022753,2]
[313766734,1707699032529,-499.99,0.00022753,2]
[313766735,1707699032537,-280.13227264,0.00022765,2]
[313766736,1707699032546,-1000.0,0.00022768,2]
[313766737,1707699032555,-667.39187652,0.00022768,2]
[313766738,1707699032567,-579.59745,0.00022768,2]
[313766739,1707699032578,-895.03115118,0.00022768,2]
[313766740,1707699032587,-228.90137098,0.00022768,2]
[313766741,1707699032596,-209.74966094,0.00022768,2]
[313766742,1707699032605,-4609.48299153,0.00022769,2]
[313766743,1707699032617,-12390.51700847,0.00022769,2]
[313766744,1707699032628,-154.12357403,0.00022789,2]
[313766745,1707699032637,-258.475,0.000228,2]
[313766746,1707699032646,-600.85095487,0.000228,2]
[313766747,1707699032656,-2005.9381,0.000228,2]
[313766748,1707699032665,-154.12357403,0.00022826,2]
[313766749,1707699032674,-154.12357403,0.00022863,2]
[313766750,1707699032683,-490.33453356,0.00022897,3]
[313766751,1707699032692,-1548.8558,0.00022897,2]
[313766752,1707699032700,-1153.64547167,0.00022897,2]
[313766753,1707699032709,-155.78867986,0.00022898,2]
[313766754,1707699032718,-1257.76218502,0.00022898,2]
[313766755,1707699032727,-1099.63523633,0.00022898,2]
[313766756,1707699032736,-240.71499822,0.00022898,2]
[313766757,1707699032745,-327.734199,0.00022898,2]
[313766758,1707699032754,-632.50548353,0.00022898,2]
[313766759,1707699032763,-191.04557841,0.00022898,2]
[313766760,1707699032773,-355.92513218,0.00022898,2]
[313766761,1707699032782,-12737.09261757,0.00022898,2]
[313766762,1707699032791,-587.35431983,0.00022898,2]
[313766763,1707699032800,-202.74047803,0.00022898,2]
[313766764,1707699032808,-1046.49104352,0.00022898,2]
[313766765,1707699032817,-1018.66569892,0.00022898,2]
[313766766,1707699032826,-701.78057792,0.00022898,2]
[313766767,1707699032835,-159.64699017,0.00022898,2]
[313766768,1707699032844,-306.45658783,0.00022898,2]
[313766769,1707699032853,-229.11334724,0.00022898,2]
[313766770,1707699032862,-183.01824146,0.00022898,2]
[313766771,1707699032872,-279.68560174,0.00022898,2]
[313766772,1707699032881,-200.0,0.00022898,2]
[313766773,1707699032889,-200.0,0.00022898,2]
[313766774,1707699032899,-201.0,0.00022898,2]
[313766775,1707699032908,-276.9818,0.00022899,2]
[313766776,1707699032916,-251.0986,0.00022899,2]
[313766777,1707699032926,-606.7962,0.000229,2]
[313766778,1707699032935,-77114.95093075,0.000229,2]
[313766779,1707699032947,-7297.68046925,0.000229,2]
[313766780,1707699032956,-547.10676134,0.000229,2]
[313766781,1707699032965,-84381.41,0.000229,2]
[313766782,1707699032975,-154.12357403,0.000229,2]
[313766783,1707699032985,-195.94947251,0.00022989,2]
[313766784,1707699032994,-578.6637511,0.00022995,2]
[313766785,1707699033005,-338.46264997,0.00022995,2]
[313766786,1707699033016,-316.90563559,0.00022995,2]
[313766787,1707699033026,-447.89292513,0.00022995,2]
[313766788,1707699033035,-156.25577456,0.00022995,2]
[313766789,1707699033045,-155.96374419,0.00022995,2]
[313766790,1707699033055,-314.40306534,0.00022995,2]
[313766791,1707699033065,-155.0,0.00022995,2]
[313766792,1707699033074,-748.58711906,0.00022995,2]
[313766793,1707699033083,-163.30492899,0.00022995,2]
[313766794,1707699033093,-155.0,0.00022995,2]
[313766795,1707699033103,-2323.45228506,0.00022995,2]
[313766796,1707699033112,-162.10429849,0.00022995,2]
[313766797,1707699033120,-313.5325998,0.00022995,2]
[313766798,1707699033129,-487.54545682,0.00022995,2]
[313766799,1707699033138,-155.24461793,0.00022995,2]
[313766800,1707699033147,-155.4231818,0.00022995,2]
[313766801,1707699033156,-3340.44797552,0.00022995,2]
[313766802,1707699033166,-217.45925662,0.00022995,2]
[313766803,1707699033175,-232.48962599,0.00022995,2]
[313766804,1707699033184,-503.23980836,0.00022995,2]
[313766805,1707699033193,-155.0,0.00022995,2]
[313766806,1707699033202,-544.90427787,0.00022995,2]
[313766807,1707699033211,-364.82931243,0.00022995,2]
[313766808,1707699033220,-254.85613051,0.00022995,2]
[313766809,1707699033229,-375.18085056,0.00022995,2]
[313766810,1707699033239,-1206.07880457,0.00022995,2]
[313766811,1707699033249,-1046.30905086,0.00022995,2]
[313766812,1707699033258,-397.36831192,0.00022995,2]
[313766813,1707699033267,-260.93542581,0.00022995,2]
[313766814,1707699033278,-1407.31579397,0.00022995,2]
[313766815,1707699033287,-524.31366153,0.00022996,2]
[313766816,1707699033296,-221.53006642,0.00022996,2]
[313766817,1707699033305,-224.48768462,0.00022997,2]
[313766818,1707699033314,-42698.05217164,0.00022997,2]
[313766819,1707699033323,-271.04443562,0.00022997,2]
[313766820,1707699033332,-290.05366865,0.00022997,2]
[313766821,1707699033341,-5648.46874396,0.00022997,2]
[313766822,1707699033351,-336.84526799,0.00022997,2]
[313766823,1707699033360,-583.66541534,0.00022997,2]
[313766824,1707699033369,-155.0,0.00022997,2]
[313766825,1707699033378,-155.17807555,0.00022997,2]
[313766826,1707699033387,-474.4092373,0.00022997,2]
[313766827,1707699033397,-838.53372,0.00022997,2]
[313766828,1707699033406,-162.83714396,0.00022997,2]
[313766829,1707699033415,-155.0,0.00022997,2]
[313766830,1707699033424,-19643.90163895,0.00022997,2]
[313766831,1707699033433,-265.15535623,0.00022997,2]
[313766832,1707699033442,-21518.30367841,0.00022997,2]
[313766833,1707699033452,-265.23406397,0.00022997,2]
[313766834,1707699033463,-4537.02199108,0.00022997,2]
[313766835,1707699033472,-201.46673912,0.00022997,2]
[313766836,1707699033481,-1813.68084069,0.00022997,2]
[313766837,1707699033490,-534.13363385,0.00022998,2]
[313766838,1707699033500,-399.01234312,0.00022999,2]
[313766839,1707699033514,-134.20001377,0.00022999,2]
[313766840,1707699033523,-155.19783312,0.00022999,2]
[313766841,1707699033532,-364.66140854,0.00022999,2]
[313766842,1707699034764,-831.66345468,0.00022999,2]
[313766843,1707699034775,-502.50678473,0.00022999,2]
[313766844,1707699034787,-1073.34824939,0.00022999,2]
[313766845,1707699034821,-382.0077164,0.00022999,2]
[313766846,1707699034833,-2994.15050318,0.00022999,2]
[313766847,1707699034868,2982.6861,0.00022302,2]
[313766848,1707699034889,-910.41044073,0.00022999,2]
[313766849,1707699034900,-1894.52100381,0.00022999,2]
[313766850,1707699034911,-562.34159793,0.00022999,2]
[313766851,1707699034939,-4826.80773354,0.00022999,2]
[313766852,1707699034950,-1478.91999996,0.00022999,2]
[313766853,1707699034961,-1848.94501144,0.00022999,2]
[313766854,1707699034972,-1095.04735849,0.00022999,2]
[313766861,1707699038223,-6396.7995214,0.00022999,2]
[313766862,1707699038237,-1158.37101609,0.00022999,2]
[313766863,1707699038250,-2179.15406251,0.00022999,2]
[313766864,1707699038264,-130023.15849883,0.00022999,2]
[313766865,1707699038328,-3083.93062824,0.00022999,2]
[313766866,1707699038342,-20196.13232714,0.00022999,2]
[313766867,1707699038386,-1331.20025,0.00022999,2]
[313766868,1707699038444,-190928.65246785,0.00022999,2]
[313766869,1707699038454,-220849.01505367,0.00023,2]
[313766870,1707699038465,-604470.6435252,0.00023,2]
[313766871,1707699038475,-1869711.21481215,0.00023,2]
[313766874,1707699038514,-341.52480965,0.00023,2]
[313766899,1707699042115,-3036.74344243,0.00023,2]
[313766900,1707699042196,-44571.3373975,0.00023,2]
[313766964,1707699043232,-18201.3031127,0.00023,2]
[313766966,1707699043291,-651.06340159,0.00023,2]
[313766967,1707699043366,-548.51945847,0.00023,2]
[313766968,1707699043382,-910.50949508,0.00023,2]
[313766969,1707699043394,-1020.5000005,0.00023,2]
[313766971,1707699043425,-2179.25076393,0.00023,2]
[313766973,1707699043437,-279.20136684,0.00023,2]
[313766981,1707699043534,-835.04991627,0.00022999,2]
[313766982,1707699043547,-140.84480881,0.00022999,2]
[313766983,1707699043556,-2080.98250558,0.00023,2]
[313766989,1707699046191,-150.0,0.0002255,2]
[313766990,1707699046201,-110.90348369,0.00023,2]
[313766991,1707699046213,-1724.07599502,0.00023,2]
[313766992,1707699046224,-31804.6465953,0.00023,2]
[313766993,1707699046240,-44899.45966974,0.00023,2]
[313766994,1707699046349,-14601.59685163,0.00023,2]
[313766995,1707699046361,-285.11985045,0.00023,2]
[313766996,1707699046431,-6895.33541699,0.00023,2]
[313766997,1707699046443,-2903.85647648,0.00023,2]
[313766998,1707699046454,-2449.91985767,0.00023,2]
[313766999,1707699046466,-7565.11126142,0.00023,2]
[313767000,1707699046478,-2018.6149465,0.00023,2]
[313767001,1707699046506,-1821.66763034,0.00023,2]
[313767002,1707699046518,-1630.30079944,0.00023,2]
[313767003,1707699046530,-36159.6710988,0.00023,2]
[313767004,1707699046550,-537.4350766,0.00023,2]
[313767005,1707699046562,-3193.20702111,0.00023,2]
[313767006,1707699046573,-3272.22208519,0.00023,2]
[313767007,1707699046585,-2248.46080941,0.00023,2]
[313767008,1707699046596,-3153.81405,0.00023,2]
[313767009,1707699046607,-4454.257192,0.00023,2]
[313767010,1707699046619,-547.62,0.00023,2]
[313767011,1707699046630,-866.00069912,0.00023,2]
[313767012,1707699046642,-6350.98677237,0.00023,2]
[313767013,1707699046654,-33081.15859758,0.00023,2]
[313767014,1707699046665,-11973.48986132,0.00023,2]
[313767015,1707699046676,-1525.90815294,0.00023,2]
[313767016,1707699046707,-280.27417697,0.00023,2]
[313767017,1707699046719,-379.24221432,0.00023,2]
[313767018,1707699047101,734.83007786,0.00021,2]
[313767019,1707699054904,563.41535426,0.00020468,2]
[313767020,1707699068675,250.28597983,0.00021,2]
[313767021,1707699072918,300.91426604,0.00020467,2]
[313767027,1707699317494,250.0,0.00022,2]
[313767028,1707699319280,253.62615809,0.00022274,2]
[313767029,1707699321694,150.0,0.00022,2]
[313767030,1707699345546,254.27,0.00020414,2]
[313767031,1707699348267,155.785124,0.0002237,2]
[313767032,1707699348332,281.10874192,0.00022401,2]
[313767033,1707699357657,2794.8662989,0.00022401,2]
[313767034,1707699392531,240.71,0.00021995,2]
[313767035,1707699426830,281.10874192,0.00022401,2]
[313767036,1707699552245,177.2,0.00022,2]
[313767037,1707699694189,205.0,0.00022044,2]
[313767038,1707699736689,156.21,0.00022049,2]
[313767040,1707699842199,240.71,0.00021923,2]
[313767042,1707699876079,654.75270962,0.00022401,2]
[313767045,1707699915084,809.68,0.00021893,2]
[313767046,1707699923682,241.55,0.00019996,2]
[313767047,1707699923883,241.55,0.0002226,2]
[313767053,1707699995752,5200.0,0.00022401,2]
[313767054,1707700012940,171.12,0.00021918,2]
[313767064,1707700111350,-409.92,0.0002247,2]
[313767065,1707700111371,-177.2,0.00022548,2]
[313767066,1707700111390,-165.45,0.0002258,2]
[313767067,1707700111412,-155.78512393,0.00022668,2]
[313767068,1707700111432,-500.0,0.000227,2]
[313767069,1707700124179,-155.78512393,0.00022707,2]
[313767070,1707700124201,-155.78512393,0.00022745,2]
[313767071,1707700124224,-150.0,0.00022769,2]
[313767072,1707700124244,-506.70255148,0.00022769,2]
[313767073,1707700124263,-235.86294,0.0002277,2]
[313767074,1707700124283,-150.99,0.0002277,2]
[313767075,1707700124303,-3436.51913673,0.0002277,2]
[313767080,1707700165184,-150.0,0.00022754,2]
[313767081,1707700165204,-1100.0,0.0002277,2]
[313767084,1707700188333,177.2,0.00022,2]
[313767085,1707700195093,156.21,0.0002225,2]
[313767114,1707700231429,-43657.0,0.00022542,2]
[313767115,1707700231438,-177.2,0.00022548,2]
[313767116,1707700231450,-155.78512393,0.00022784,2]
[313767117,1707700231461,-150.0,0.00022798,2]
[313767118,1707700231470,-4849.5967,0.000228,2]
[313767119,1707700231479,-150.0,0.00022816,2]
[313767120,1707700231489,-155.78512393,0.00022823,2]
[313767121,1707700231498,-310.70116746,0.00022824,2]
[313767122,1707700231507,-150.0,0.00022824,2]
[313767123,1707700231516,-155.78512393,0.00022861,2]
[313767124,1707700231525,-150.0,0.00022871,2]
[313767125,1707700231534,-150.0,0.00022888,2]
[313767126,1707700231544,-7334.22459183,0.00022889,2]
[313767127,1707700231554,-48731.2766,0.00022899,2]
[313767128,1707700231563,-1150.40938337,0.00022899,2]
[313767129,1707700231573,-155.78512393,0.000229,2]
[313767130,1707700231583,-879.95202001,0.000229,2]
[313767131,1707700231593,-354.81818162,0.000229,2]
[313767132,1707700231602,-398.37388159,0.00022996,3]
[313767133,1707700231621,-833.98225578,0.00022996,2]
[313767134,1707700231638,-609.06497982,0.00022996,2]
[313767135,1707700231652,-5433.14796168,0.00022997,2]
[313767136,1707700231668,-10017.48618846,0.00022997,2]
[313767137,1707700231684,-5832.79387738,0.00022998,5]
[313767138,1707700231700,-4629.0479401,0.00022998,2]
[313767139,1707700231715,-8889.51177518,0.00022998,2]
[313767141,1707700231732,-784.24492004,0.00022998,2]
[313767143,1707700231750,-723.29357829,0.00022998,2]
[313767147,1707700231812,-1031.33862044,0.00022998,2]
[313767148,1707700231851,-19456.8,0.00022998,2]
[313767149,1707700231867,-2235.73026678,0.00022998,2]
[313767150,1707700231915,-1008.9263289,0.00022998,2]
[313767151,1707700231934,-1075.49275789,0.00022998,2]
[313767152,1707700231959,-101915.48642198,0.00022998,2]
[313767154,1707700231974,-20581.7359598,0.00022998,2]
[313767156,1707700231986,-6925.1970266,0.00022998,2]
[313767159,1707700232001,-150.01,0.00022999,2]
[313767161,1707700232013,-53328.95263607,0.00022999,2]
[313767164,1707700232032,-453.58903619,0.00022999,2]
[313767221,1707700237495,-13423.0277675,0.00022999,2]
[313767222,1707700237555,-676.6056036,0.00022999,2]
[313767223,1707700237718,-255824.55639505,0.00022999,2]
[313767224,1707700237728,-1315.56086356,0.00022999,2]
[313767225,1707700237737,-1000.0,0.00022999,2]
[313767226,1707700237747,-1006.0055,0.00022999,2]
[313767227,1707700237756,-150.0,0.00022999,2]
[313767228,1707700237765,-150.0,0.00022999,2]
[313767229,1707700237775,-150.0,0.00022999,2]
[313767230,1707700237784,-150.0,0.00022999,2]
[313767231,1707700237793,-150.0,0.00022999,2]
[313767232,1707700237802,-150.0,0.00022999,2]
[313767233,1707700237810,-150.0,0.00022999,2]
[313767234,1707700237820,-150.0,0.00022999,2]